[Event "*** Titled Tuesday Blitz"]
[Site "Chess.com"]
[Date "2019.02.05"]
[Round "7"]
[White "David_Klein"]
[Black "LucaBrasi1968"]
[Result "1-0"]
[WhiteElo "2596"]
[BlackElo "2448"]
[TimeControl "180+2"]
[EndTime "14:41:11 PST"]
[Termination "David_Klein won by resignation"]

1. b3 {[%clk 0:03:01.9]} 1... d5 {[%clk 0:02:53.2]} 2. Bb2 {[%clk 0:03:03]} 2...
Bg4 {[%clk 0:02:54.1]} 3. c4 {[%clk 0:03:01.1]} 3... c6 {[%clk 0:02:53]} 4. Nf3
{[%clk 0:03:00.8]} 4... Bxf3 {[%clk 0:02:52.6]} 5. gxf3 {[%clk 0:03:01.7]} 5...
e6 {[%clk 0:02:53.6]} 6. e3 {[%clk 0:03:02.1]} 6... Nf6 {[%clk 0:02:54.4]} 7.
Nc3 {[%clk 0:03:01]} 7... g6 {[%clk 0:02:55.5]} 8. d4 {[%clk 0:02:58.6]} 8...
Bd6 {[%clk 0:02:54.5]} 9. f4 {[%clk 0:02:59.5]} 9... Nbd7 {[%clk 0:02:51.2]} 10.
Be2 {[%clk 0:03:00.5]} 10... Qe7 {[%clk 0:02:50.9]} 11. Qc2 {[%clk 0:02:59.9]}
11... a6 {[%clk 0:02:35.1]} 12. Bf3 {[%clk 0:02:55.3]} 12... Bb4 {[%clk
0:02:29.7]} 13. a3 {[%clk 0:02:54.1]} 13... Bd6 {[%clk 0:02:30.3]} 14. c5 {[%clk
0:02:51.8]} 14... Bc7 {[%clk 0:02:31.1]} 15. b4 {[%clk 0:02:53]} 15... O-O
{[%clk 0:02:26.4]} 16. h4 {[%clk 0:02:49.6]} 16... b6 {[%clk 0:02:19.8]} 17. Ne2
{[%clk 0:02:47.5]} 17... a5 {[%clk 0:02:16.9]} 18. Rb1 {[%clk 0:02:40.7]} 18...
axb4 {[%clk 0:02:16.2]} 19. axb4 {[%clk 0:02:42.6]} 19... b5 {[%clk 0:02:16.7]}
20. h5 {[%clk 0:02:41.8]} 20... Kg7 {[%clk 0:02:15.9]} 21. Kf1 {[%clk
0:02:16.4]} 21... Rg8 {[%clk 0:02:08.8]} 22. Ng3 {[%clk 0:02:15.3]} 22... Kf8
{[%clk 0:02:07.5]} 23. Bc3 {[%clk 0:02:14]} 23... Ke8 {[%clk 0:02:03.9]} 24. Ke2
{[%clk 0:02:13.6]} 24... Kf8 {[%clk 0:01:44.3]} 25. hxg6 {[%clk 0:02:13.6]}
25... hxg6 {[%clk 0:01:44.3]} 26. Ra1 {[%clk 0:02:09.5]} 26... Kg7 {[%clk
0:01:44.6]} 27. Qb2 {[%clk 0:01:47.7]} 27... Rgb8 {[%clk 0:01:29.5]} 28. Qb1
{[%clk 0:01:40.1]} 28... Qd8 {[%clk 0:01:25]} 29. Qg1 {[%clk 0:01:35.7]} 29...
Rxa1 {[%clk 0:01:23.2]} 30. Bxa1 {[%clk 0:01:36.9]} 30... Ra8 {[%clk 0:01:17.4]}
31. Bc3 {[%clk 0:01:20.5]} 31... Ra3 {[%clk 0:01:16]} 32. Bd2 {[%clk 0:01:19.5]}
32... Kf8 {[%clk 0:01:06.4]} 33. Rh8+ {[%clk 0:01:18.6]} 33... Ng8 {[%clk
0:01:07.5]} 34. f5 {[%clk 0:01:09.2]} 34... Qf6 {[%clk 0:00:50.5]} 35. Qh1
{[%clk 0:01:07.2]} 35... exf5 {[%clk 0:00:48]} 36. Qh7 {[%clk 0:01:06.4]} 36...
Qxh8 {[%clk 0:00:24.8]} 37. Qxh8 {[%clk 0:01:06.3]} 37... Ra2 {[%clk 0:00:26.7]}
38. Qh1 {[%clk 0:00:55.7]} 38... f4 {[%clk 0:00:27.3]} 39. Nf1 {[%clk
0:00:53.8]} 39... Ngf6 {[%clk 0:00:27.3]} 40. Qh8+ {[%clk 0:00:52.2]} 40... Ng8
{[%clk 0:00:26]} 41. Kd3 {[%clk 0:00:35.2]} 41... Nf6 {[%clk 0:00:21.2]} 42. Qh3
{[%clk 0:00:33.8]} 42... Ne7 {[%clk 0:00:20.7]} 43. Qh6+ {[%clk 0:00:30.4]}
43... Kg8 {[%clk 0:00:21.2]} 44. Qg5 {[%clk 0:00:29.9]} 44... Kg7 {[%clk
0:00:21.6]} 45. Kc3 {[%clk 0:00:24.2]} 45... Nf5 {[%clk 0:00:21.3]} 46. Kb3
{[%clk 0:00:23.5]} 46... Ra1 {[%clk 0:00:20.9]} 47. Nh2 {[%clk 0:00:18.6]} 47...
Rb1+ {[%clk 0:00:17.9]} 48. Kc2 {[%clk 0:00:19.1]} 48... Ra1 {[%clk 0:00:18.3]}
49. Ng4 {[%clk 0:00:20]} 49... Bd8 {[%clk 0:00:13.2]} 50. Nxf6 {[%clk
0:00:18.5]} 50... Bxf6 {[%clk 0:00:14.4]} 51. Qxf4 {[%clk 0:00:19.8]} 51... Ra2+
{[%clk 0:00:13.2]} 52. Kc1 {[%clk 0:00:20.1]} 52... Ra1+ {[%clk 0:00:14]} 53.
Kb2 {[%clk 0:00:21.4]} 53... Ra4 {[%clk 0:00:15.6]} 54. Qc7 {[%clk 0:00:21.7]}
54... Bxd4+ {[%clk 0:00:10.3]} 55. exd4 {[%clk 0:00:21.9]} 1-0

[Event "*** Titled Tuesday Blitz"]
[Site "Chess.com"]
[Date "2019.02.05"]
[Round "7"]
[White "HrvojeZagreb"]
[Black "m3alam"]
[Result "0-1"]
[WhiteElo "2099"]
[BlackElo "2156"]
[TimeControl "180+2"]
[EndTime "14:41:16 PST"]
[Termination "m3alam won by resignation"]

1. d4 {[%clk 0:01:49.7]} 1... c6 {[%clk 0:03:01.9]} 2. Bf4 {[%clk 0:01:49.7]}
2... d5 {[%clk 0:03:02.6]} 3. c4 {[%clk 0:01:50.8]} 3... dxc4 {[%clk 0:03:00.7]}
4. e3 {[%clk 0:01:51.8]} 4... Be6 {[%clk 0:02:53.4]} 5. a4 {[%clk 0:01:51.7]}
5... a5 {[%clk 0:02:52]} 6. Nd2 {[%clk 0:01:52.6]} 6... Qb6 {[%clk 0:02:41.3]}
7. Qc2 {[%clk 0:01:46.2]} 7... Qb4 {[%clk 0:02:40.2]} 8. Nf3 {[%clk 0:01:43.6]}
8... Nd7 {[%clk 0:02:40.5]} 9. Bxc4 {[%clk 0:01:40.3]} 9... Bxc4 {[%clk
0:02:30.3]} 10. Qxc4 {[%clk 0:01:42.2]} 10... e6 {[%clk 0:02:30.2]} 11. O-O
{[%clk 0:01:39.3]} 11... Ngf6 {[%clk 0:02:29.3]} 12. Ne5 {[%clk 0:01:37.2]}
12... Nxe5 {[%clk 0:02:28.8]} 13. Bxe5 {[%clk 0:01:38.2]} 13... Nd5 {[%clk
0:02:29.2]} 14. Rfd1 {[%clk 0:01:34.9]} 14... f6 {[%clk 0:02:29.6]} 15. Bg3
{[%clk 0:01:35.3]} 15... Qxc4 {[%clk 0:02:27.9]} 16. Nxc4 {[%clk 0:01:36.4]}
16... Bb4 {[%clk 0:02:18.4]} 17. Nd6+ {[%clk 0:01:32.9]} 17... Kd7 {[%clk
0:02:15.1]} 18. Nxb7 {[%clk 0:01:32.3]} 18... h5 {[%clk 0:01:59]} 19. h4 {[%clk
0:01:30.4]} 19... g5 {[%clk 0:01:59.7]} 20. Nc5+ {[%clk 0:01:28.8]} 20... Ke7
{[%clk 0:01:56.6]} 21. e4 {[%clk 0:01:27.5]} 21... Nb6 {[%clk 0:01:51.2]} 22. b3
{[%clk 0:01:21.8]} 22... Rhg8 {[%clk 0:01:40.7]} 23. Rac1 {[%clk 0:01:22]} 23...
Rac8 {[%clk 0:01:36.7]} 24. Rc2 {[%clk 0:01:19.7]} 24... gxh4 {[%clk 0:01:36.5]}
25. Bxh4 {[%clk 0:01:20]} 25... Rg4 {[%clk 0:01:38.4]} 26. g3 {[%clk 0:01:14.3]}
26... Bxc5 {[%clk 0:01:39.3]} 27. dxc5 {[%clk 0:01:15]} 27... Nd7 {[%clk
0:01:38]} 28. f3 {[%clk 0:01:15.1]} 28... Rgg8 {[%clk 0:01:33.8]} 29. Kf2 {[%clk
0:01:06.9]} 29... Ne5 {[%clk 0:01:34.2]} 30. Rcd2 {[%clk 0:01:01.5]} 30... Rb8
{[%clk 0:01:34.3]} 31. Rb1 {[%clk 0:00:55]} 31... Rb4 {[%clk 0:01:34]} 32. f4
{[%clk 0:00:43.8]} 32... Ng4+ {[%clk 0:01:32.8]} 33. Kf3 {[%clk 0:00:43.8]}
33... Rgb8 {[%clk 0:01:33.2]} 34. Rd3 {[%clk 0:00:40.3]} 34... e5 {[%clk
0:01:33.9]} 35. Ke2 {[%clk 0:00:24.7]} 35... Rxa4 {[%clk 0:01:31.3]} 36. bxa4
{[%clk 0:00:24.3]} 36... Rxb1 {[%clk 0:01:30.3]} 37. Kd2 {[%clk 0:00:21.5]}
37... Rb4 {[%clk 0:01:30.9]} 38. Rd6 {[%clk 0:00:19.4]} 38... Rxa4 {[%clk
0:01:14.4]} 39. fxe5 {[%clk 0:00:20.1]} 39... Rxe4 {[%clk 0:01:07.5]} 40. exf6+
{[%clk 0:00:20.3]} 40... Kf7 {[%clk 0:01:04.4]} 41. Rxc6 {[%clk 0:00:21.2]}
41... Re6 {[%clk 0:01:03.2]} 42. Rc7+ {[%clk 0:00:22]} 42... Kf8 {[%clk
0:01:02.8]} 43. f7 {[%clk 0:00:20.4]} 43... Ne5 {[%clk 0:01:01.1]} 44. Ra7
{[%clk 0:00:09.2]} 44... Rc6 {[%clk 0:01:01.8]} 45. Rxa5 {[%clk 0:00:09.8]}
45... Nc4+ {[%clk 0:01:02]} 46. Kc3 {[%clk 0:00:10.9]} 46... Nxa5 {[%clk
0:01:03.6]} 47. Kb4 {[%clk 0:00:12.3]} 47... Nb7 {[%clk 0:01:03.8]} 48. Kb5
{[%clk 0:00:13.5]} 48... Rg6 {[%clk 0:01:01.8]} 49. c6 {[%clk 0:00:11.2]} 49...
Nd6+ {[%clk 0:01:01.1]} 50. Kb6 {[%clk 0:00:11.1]} 50... Nxf7 {[%clk 0:01:01.4]}
51. Kb7 {[%clk 0:00:11.5]} 51... Nd6+ {[%clk 0:00:57.8]} 52. Kb8 {[%clk
0:00:12.1]} 52... Kf7 {[%clk 0:00:53.7]} 53. c7 {[%clk 0:00:13.2]} 53... Rg8+
{[%clk 0:00:54.6]} 54. Ka7 {[%clk 0:00:13.4]} 54... Rc8 {[%clk 0:00:50.2]} 55.
Bd8 {[%clk 0:00:13.5]} 55... Ke6 {[%clk 0:00:52.1]} 56. Kb6 {[%clk 0:00:13.2]}
56... Kd7 {[%clk 0:00:53.7]} 57. Kc5 {[%clk 0:00:12]} 57... Ne8 {[%clk
0:00:53.8]} 58. Kb6 {[%clk 0:00:11.2]} 58... Nxc7 {[%clk 0:00:54.6]} 59. Bxc7
{[%clk 0:00:12.4]} 59... Rxc7 {[%clk 0:00:55.7]} 0-1

[Event "*** Titled Tuesday Blitz"]
[Site "Chess.com"]
[Date "2019.02.05"]
[Round "7"]
[White "gmjlh"]
[Black "josmito10"]
[Result "0-1"]
[WhiteElo "2701"]
[BlackElo "2746"]
[TimeControl "180+2"]
[EndTime "14:41:19 PST"]
[Termination "josmito10 won on time"]

1. e4 {[%clk 0:03:01.9]} 1... c5 {[%clk 0:02:55.5]} 2. Nf3 {[%clk 0:03:02.2]}
2... Nc6 {[%clk 0:02:57.1]} 3. Bb5 {[%clk 0:03:02.4]} 3... d6 {[%clk 0:02:58.8]}
4. Bxc6+ {[%clk 0:03:01.4]} 4... bxc6 {[%clk 0:03:00]} 5. O-O {[%clk 0:03:00]}
5... Bg4 {[%clk 0:02:55.5]} 6. d3 {[%clk 0:02:58.4]} 6... e6 {[%clk 0:02:55.7]}
7. Nbd2 {[%clk 0:02:53.9]} 7... Ne7 {[%clk 0:02:55.2]} 8. h3 {[%clk 0:02:52.1]}
8... Bh5 {[%clk 0:02:52.8]} 9. e5 {[%clk 0:02:52.8]} 9... Nd5 {[%clk 0:02:45.8]}
10. Nc4 {[%clk 0:02:45.5]} 10... Be7 {[%clk 0:02:38.8]} 11. Re1 {[%clk
0:02:29.5]} 11... O-O {[%clk 0:02:37.3]} 12. Bd2 {[%clk 0:02:11.2]} 12... Rb8
{[%clk 0:02:23.6]} 13. Ba5 {[%clk 0:02:07.5]} 13... Qd7 {[%clk 0:02:21.7]} 14.
exd6 {[%clk 0:02:05.3]} 14... Bxf3 {[%clk 0:02:06.9]} 15. Qxf3 {[%clk
0:01:51.4]} 15... Bxd6 {[%clk 0:02:08.1]} 16. Nxd6 {[%clk 0:01:32.4]} 16... Qxd6
{[%clk 0:02:08.2]} 17. b3 {[%clk 0:01:32.3]} 17... e5 {[%clk 0:02:03.8]} 18. Re4
{[%clk 0:01:30.7]} 18... f6 {[%clk 0:02:03.3]} 19. Rae1 {[%clk 0:01:30.6]} 19...
Nb4 {[%clk 0:01:57]} 20. Bxb4 {[%clk 0:01:30.9]} 20... cxb4 {[%clk 0:01:52.3]}
21. Rc4 {[%clk 0:01:06.3]} 21... Rb6 {[%clk 0:01:41]} 22. h4 {[%clk 0:01:03.1]}
22... Qd5 {[%clk 0:01:21.4]} 23. Qg3 {[%clk 0:00:58.8]} 23... c5 {[%clk
0:01:19.7]} 24. h5 {[%clk 0:00:58.2]} 24... h6 {[%clk 0:01:14.4]} 25. Rg4 {[%clk
0:00:47.9]} 25... Rb7 {[%clk 0:00:56.4]} 26. Rg6 {[%clk 0:00:47.8]} 26... Kh7
{[%clk 0:00:54.2]} 27. Re4 {[%clk 0:00:48]} 27... a5 {[%clk 0:00:49.9]} 28.
Rxh6+ {[%clk 0:00:47.7]} 28... gxh6 {[%clk 0:00:32.2]} 29. Qg6+ {[%clk
0:00:47.7]} 29... Kh8 {[%clk 0:00:33.5]} 30. Qxh6+ {[%clk 0:00:39.1]} 30... Kg8
{[%clk 0:00:34.8]} 31. Rg4+ {[%clk 0:00:34.2]} 31... Kf7 {[%clk 0:00:36.1]} 32.
Rg7+ {[%clk 0:00:18.2]} 32... Ke8 {[%clk 0:00:36.5]} 33. Qg6+ {[%clk 0:00:19.4]}
33... Kd8 {[%clk 0:00:31.9]} 34. h6 {[%clk 0:00:20.7]} 34... Rxg7 {[%clk
0:00:21]} 35. hxg7 {[%clk 0:00:22.6]} 35... Rg8 {[%clk 0:00:21.1]} 36. Qxf6+
{[%clk 0:00:24.1]} 36... Kd7 {[%clk 0:00:22.9]} 37. Qf8 {[%clk 0:00:17.8]} 37...
Qe6 {[%clk 0:00:21.5]} 38. Qxc5 {[%clk 0:00:10.5]} 38... Ke8 {[%clk 0:00:19.8]}
39. Qc7 {[%clk 0:00:06.6]} 39... Qe7 {[%clk 0:00:17.3]} 40. Qxa5 {[%clk
0:00:04.9]} 40... Qxg7 {[%clk 0:00:18.5]} 41. g3 {[%clk 0:00:06]} 41... Qe7
{[%clk 0:00:17.3]} 42. Qa8+ {[%clk 0:00:05.4]} 42... Kf7 {[%clk 0:00:18.6]} 43.
Qf3+ {[%clk 0:00:06.3]} 43... Qf6 {[%clk 0:00:17]} 44. Qb7+ {[%clk 0:00:07.1]}
44... Kg6 {[%clk 0:00:17.2]} 45. Qxb4 {[%clk 0:00:07.7]} 45... Rf8 {[%clk
0:00:16.7]} 46. Qe4+ {[%clk 0:00:08.7]} 46... Qf5 {[%clk 0:00:18]} 47. Qe1
{[%clk 0:00:08.1]} 47... Qf3 {[%clk 0:00:17.4]} 48. a4 {[%clk 0:00:07.8]} 48...
Kf6 {[%clk 0:00:16.6]} 49. Qb4 {[%clk 0:00:04]} 49... Kg5 {[%clk 0:00:14.8]} 50.
Qc5 {[%clk 0:00:03.3]} 50... Kg4 {[%clk 0:00:12.4]} 0-1

[Event "*** Titled Tuesday Blitz"]
[Site "Chess.com"]
[Date "2019.02.05"]
[Round "7"]
[White "BvsN"]
[Black "cool4chess"]
[Result "0-1"]
[WhiteElo "2296"]
[BlackElo "2317"]
[TimeControl "180+2"]
[EndTime "14:41:20 PST"]
[Termination "cool4chess won by resignation"]

1. d4 {[%clk 0:03:01.9]} 1... d5 {[%clk 0:03:00.6]} 2. c4 {[%clk 0:03:02.8]}
2... c6 {[%clk 0:03:02]} 3. Nc3 {[%clk 0:03:03.7]} 3... dxc4 {[%clk 0:03:02.9]}
4. e4 {[%clk 0:03:04.6]} 4... b5 {[%clk 0:03:04]} 5. a4 {[%clk 0:03:05.7]} 5...
b4 {[%clk 0:03:05.2]} 6. Nce2 {[%clk 0:03:06.7]} 6... Nf6 {[%clk 0:03:00.2]} 7.
Ng3 {[%clk 0:03:07.6]} 7... Ba6 {[%clk 0:02:55.4]} 8. Nf3 {[%clk 0:03:08.6]}
8... e6 {[%clk 0:02:45.3]} 9. Be2 {[%clk 0:03:05.6]} 9... Nbd7 {[%clk 0:02:45]}
10. O-O {[%clk 0:03:04.6]} 10... Be7 {[%clk 0:02:45.7]} 11. Bg5 {[%clk
0:03:02.7]} 11... O-O {[%clk 0:02:44.4]} 12. e5 {[%clk 0:03:03.2]} 12... Nd5
{[%clk 0:02:45.1]} 13. Bxe7 {[%clk 0:03:03.1]} 13... Qxe7 {[%clk 0:02:46.5]} 14.
Ne4 {[%clk 0:03:03.6]} 14... c5 {[%clk 0:02:45.3]} 15. Rc1 {[%clk 0:03:02.6]}
15... cxd4 {[%clk 0:02:42.3]} 16. Bxc4 {[%clk 0:03:00.6]} 16... Bb7 {[%clk
0:02:18.9]} 17. Qxd4 {[%clk 0:02:49.8]} 17... N7b6 {[%clk 0:02:14.4]} 18. Bb3
{[%clk 0:02:32.8]} 18... Nf4 {[%clk 0:02:15.1]} 19. Rfe1 {[%clk 0:02:22.9]}
19... Rad8 {[%clk 0:01:38.5]} 20. Nf6+ {[%clk 0:02:22.1]} 20... Qxf6 {[%clk
0:01:15.2]} 21. exf6 {[%clk 0:02:15.1]} 21... Rxd4 {[%clk 0:01:16]} 22. Nxd4
{[%clk 0:02:16]} 22... Nd3 {[%clk 0:01:12]} 23. Rc7 {[%clk 0:01:40.4]} 23...
Nxe1 {[%clk 0:00:50.9]} 24. Rxb7 {[%clk 0:01:39.6]} 24... gxf6 {[%clk
0:00:51.9]} 25. a5 {[%clk 0:01:11.5]} 25... Nc8 {[%clk 0:00:50.6]} 26. Nxe6
{[%clk 0:00:46.6]} 26... fxe6 {[%clk 0:00:51.4]} 27. Bxe6+ {[%clk 0:00:47]}
27... Kh8 {[%clk 0:00:52.8]} 28. Rb8 {[%clk 0:00:47.1]} 28... Nd3 {[%clk
0:00:50.8]} 29. Rxc8 {[%clk 0:00:41.4]} 29... Rxc8 {[%clk 0:00:50.3]} 30. Bxc8
{[%clk 0:00:42.5]} 30... Nxb2 {[%clk 0:00:51.9]} 31. Kf1 {[%clk 0:00:38.3]}
31... Nc4 {[%clk 0:00:52.6]} 32. Ke2 {[%clk 0:00:22.1]} 32... Nxa5 {[%clk
0:00:51.7]} 33. Kd3 {[%clk 0:00:19.1]} 33... Nc6 {[%clk 0:00:43.7]} 34. Bb7
{[%clk 0:00:12.1]} 34... Ne5+ {[%clk 0:00:40.1]} 35. Kd4 {[%clk 0:00:13.3]}
35... Kg7 {[%clk 0:00:34]} 36. f4 {[%clk 0:00:14.1]} 36... Nf7 {[%clk 0:00:23]}
37. Bd5 {[%clk 0:00:11.4]} 37... Nd6 {[%clk 0:00:17.4]} 38. Kc5 {[%clk
0:00:11.7]} 38... Nf5 {[%clk 0:00:10.7]} 39. Kxb4 {[%clk 0:00:11.4]} 39... Ne3
{[%clk 0:00:12]} 40. Bf3 {[%clk 0:00:10.6]} 40... Kg6 {[%clk 0:00:10.3]} 41. Ka5
{[%clk 0:00:10.4]} 41... Nf1 {[%clk 0:00:11.6]} 42. h3 {[%clk 0:00:08.2]} 42...
Kf5 {[%clk 0:00:12.9]} 43. Ka6 {[%clk 0:00:07.9]} 43... Kxf4 {[%clk 0:00:14]}
44. Kxa7 {[%clk 0:00:09.4]} 44... Ne3 {[%clk 0:00:12.4]} 45. Kb6 {[%clk
0:00:10]} 45... Kg3 {[%clk 0:00:13.8]} 46. Be4 {[%clk 0:00:09.3]} 46... f5
{[%clk 0:00:13.1]} 47. Bd3 {[%clk 0:00:10.1]} 47... h5 {[%clk 0:00:13.7]} 48.
Kc5 {[%clk 0:00:10.5]} 48... f4 {[%clk 0:00:14]} 49. Kd4 {[%clk 0:00:08.2]}
49... Nxg2 {[%clk 0:00:14.9]} 50. Kc3 {[%clk 0:00:06.4]} 50... Kxh3 {[%clk
0:00:13.7]} 51. Kd2 {[%clk 0:00:07.9]} 51... Kg3 {[%clk 0:00:15]} 52. Ke2 {[%clk
0:00:08.5]} 52... Ne3 {[%clk 0:00:16.6]} 53. Be4 {[%clk 0:00:08.8]} 53... h4
{[%clk 0:00:17.2]} 54. Bc6 {[%clk 0:00:09.7]} 54... Ng2 {[%clk 0:00:15.7]} 55.
Kf1 {[%clk 0:00:10]} 55... f3 {[%clk 0:00:17]} 56. Bd5 {[%clk 0:00:09]} 56... h3
{[%clk 0:00:16.9]} 57. Kg1 {[%clk 0:00:07.2]} 57... f2+ {[%clk 0:00:16.8]} 58.
Kf1 {[%clk 0:00:08.5]} 58... Ne3+ {[%clk 0:00:18.2]} 59. Ke2 {[%clk 0:00:08.7]}
59... f1=Q+ {[%clk 0:00:18.2]} 60. Kxe3 {[%clk 0:00:09.8]} 60... Qf2+ {[%clk
0:00:18.8]} 61. Ke4 {[%clk 0:00:10.7]} 61... Qg2+ {[%clk 0:00:19.5]} 62. Ke5
{[%clk 0:00:11.5]} 62... Qxd5+ {[%clk 0:00:21.4]} 63. Kxd5 {[%clk 0:00:12.8]}
63... h2 {[%clk 0:00:23.2]} 0-1

[Event "*** Titled Tuesday Blitz"]
[Site "Chess.com"]
[Date "2019.02.05"]
[Round "7"]
[White "Alexander_Donchenko"]
[Black "Annawel"]
[Result "1-0"]
[WhiteElo "2688"]
[BlackElo "2913"]
[TimeControl "180+2"]
[EndTime "14:41:22 PST"]
[Termination "Alexander_Donchenko won by resignation"]

1. Nf3 {[%clk 0:03:01.9]} 1... d6 {[%clk 0:03:01]} 2. d4 {[%clk 0:03:02.6]} 2...
g6 {[%clk 0:03:01.4]} 3. g3 {[%clk 0:03:03.5]} 3... Bg7 {[%clk 0:03:02.2]} 4.
Bg2 {[%clk 0:03:05]} 4... Nf6 {[%clk 0:03:03.9]} 5. O-O {[%clk 0:03:06.3]} 5...
O-O {[%clk 0:03:05.7]} 6. b3 {[%clk 0:03:07.9]} 6... a5 {[%clk 0:03:06.5]} 7. c4
{[%clk 0:03:05.6]} 7... a4 {[%clk 0:03:05]} 8. Bb2 {[%clk 0:03:06.8]} 8... c5
{[%clk 0:03:05.6]} 9. dxc5 {[%clk 0:02:59.7]} 9... dxc5 {[%clk 0:03:06.2]} 10.
Na3 {[%clk 0:02:51.7]} 10... Qb6 {[%clk 0:02:59.9]} 11. Nb5 {[%clk 0:02:39.2]}
11... Rd8 {[%clk 0:02:49.2]} 12. Qc1 {[%clk 0:02:33.5]} 12... Bd7 {[%clk
0:02:37]} 13. Rd1 {[%clk 0:02:33.9]} 13... Nc6 {[%clk 0:02:31]} 14. Bc3 {[%clk
0:02:15.9]} 14... Na5 {[%clk 0:02:20.8]} 15. bxa4 {[%clk 0:02:10.3]} 15... Nxc4
{[%clk 0:02:07.1]} 16. Bxf6 {[%clk 0:02:09.4]} 16... Bxf6 {[%clk 0:02:08.8]} 17.
Qxc4 {[%clk 0:02:09.8]} 17... Be6 {[%clk 0:02:09.9]} 18. Qc2 {[%clk 0:02:00.8]}
18... Bxa1 {[%clk 0:02:07]} 19. Rxa1 {[%clk 0:02:02.4]} 19... Qa5 {[%clk
0:01:59.6]} 20. Nc3 {[%clk 0:01:58.4]} 20... f6 {[%clk 0:01:52.4]} 21. Nd2
{[%clk 0:01:56.5]} 21... Rd7 {[%clk 0:01:52.2]} 22. Rb1 {[%clk 0:01:49.9]} 22...
Rad8 {[%clk 0:01:51.2]} 23. Nb3 {[%clk 0:01:34.7]} 23... Qb4 {[%clk 0:01:46.5]}
24. Ne4 {[%clk 0:01:31.8]} 24... Bf5 {[%clk 0:01:39]} 25. Bf3 {[%clk 0:00:52.6]}
25... b6 {[%clk 0:01:34.6]} 26. Kg2 {[%clk 0:00:49.9]} 26... Qxa4 {[%clk
0:01:33.8]} 27. g4 {[%clk 0:00:47.5]} 27... Be6 {[%clk 0:01:35.2]} 28. Rb2
{[%clk 0:00:44.4]} 28... c4 {[%clk 0:01:27.3]} 29. Nd4 {[%clk 0:00:41.7]} 29...
Qxc2 {[%clk 0:01:24.2]} 30. Nxc2 {[%clk 0:00:43.6]} 30... f5 {[%clk 0:00:58.6]}
31. gxf5 {[%clk 0:00:45.5]} 31... gxf5 {[%clk 0:01:00.5]} 32. Ng5 {[%clk
0:00:41.7]} 32... Bd5 {[%clk 0:01:01.9]} 33. Rxb6 {[%clk 0:00:40.9]} 33... Ra8
{[%clk 0:00:59.9]} 34. a3 {[%clk 0:00:37.9]} 34... Rc8 {[%clk 0:00:40.2]} 35.
Rb5 {[%clk 0:00:30.6]} 35... Bxf3+ {[%clk 0:00:40.2]} 36. Nxf3 {[%clk
0:00:32.5]} 36... e6 {[%clk 0:00:41.2]} 37. Rb6 {[%clk 0:00:29.2]} 37... Kf7
{[%clk 0:00:38.1]} 38. Ne5+ {[%clk 0:00:29.9]} 38... Ke7 {[%clk 0:00:38.8]} 39.
Nxd7 {[%clk 0:00:31]} 39... Kxd7 {[%clk 0:00:40.7]} 40. Kf3 {[%clk 0:00:29.9]}
40... Rc5 {[%clk 0:00:40.3]} 41. Ke3 {[%clk 0:00:30]} 41... Re5+ {[%clk
0:00:40.9]} 42. Kd2 {[%clk 0:00:30.9]} 42... Re4 {[%clk 0:00:41.7]} 43. Rb7+
{[%clk 0:00:30.7]} 43... Kc6 {[%clk 0:00:43.2]} 44. Rxh7 {[%clk 0:00:32.2]}
44... c3+ {[%clk 0:00:45.1]} 45. Kd3 {[%clk 0:00:33.2]} 45... Kd5 {[%clk
0:00:46.8]} 46. f3 {[%clk 0:00:32.9]} 46... Ra4 {[%clk 0:00:48.1]} 47. e4+
{[%clk 0:00:33.4]} 47... fxe4+ {[%clk 0:00:49.3]} 48. fxe4+ {[%clk 0:00:35.3]}
48... Ke5 {[%clk 0:00:50.9]} 49. Rh5+ {[%clk 0:00:36.5]} 49... Kf4 {[%clk
0:00:52.3]} 50. Kxc3 {[%clk 0:00:37.7]} 50... Ra8 {[%clk 0:00:52]} 51. Rh4+
{[%clk 0:00:36.7]} 51... Ke5 {[%clk 0:00:53.2]} 52. Kd3 {[%clk 0:00:36.7]} 52...
Rc8 {[%clk 0:00:51.8]} 53. Nb4 {[%clk 0:00:35.9]} 53... Kd6 {[%clk 0:00:50.5]}
54. Kd4 {[%clk 0:00:36.2]} 54... e5+ {[%clk 0:00:51.2]} 55. Kd3 {[%clk
0:00:37.5]} 55... Ra8 {[%clk 0:00:53.1]} 56. Nc2 {[%clk 0:00:37.6]} 56... Kc5
{[%clk 0:00:54.4]} 57. Rh7 {[%clk 0:00:37.6]} 57... Rd8+ {[%clk 0:00:54.6]} 58.
Kc3 {[%clk 0:00:39]} 58... Rg8 {[%clk 0:00:55.8]} 59. a4 {[%clk 0:00:38.5]}
59... Rg2 {[%clk 0:00:53.9]} 60. Rd7 {[%clk 0:00:38.9]} 60... Rxh2 {[%clk
0:00:54.6]} 61. Rd5+ {[%clk 0:00:39.9]} 61... Kb6 {[%clk 0:00:56.4]} 62. Rxe5
{[%clk 0:00:41.1]} 62... Rg2 {[%clk 0:00:57.7]} 63. Nd4 {[%clk 0:00:41.4]} 63...
Rg1 {[%clk 0:00:57.5]} 64. Kb4 {[%clk 0:00:42.4]} 64... Rb1+ {[%clk 0:00:58.5]}
65. Nb3 {[%clk 0:00:43.8]} 65... Re1 {[%clk 0:00:59.8]} 66. Re6+ {[%clk
0:00:45]} 66... Kc7 {[%clk 0:01:01.3]} 67. a5 {[%clk 0:00:46.3]} 67... Kd7
{[%clk 0:01:02.8]} 68. Nc5+ {[%clk 0:00:47.7]} 68... Kc7 {[%clk 0:01:04.5]} 69.
a6 {[%clk 0:00:46.6]} 69... Rb1+ {[%clk 0:01:06.4]} 70. Kc4 {[%clk 0:00:48]}
70... Kb8 {[%clk 0:01:07.6]} 71. Kd5 {[%clk 0:00:47]} 71... Ka7 {[%clk
0:01:07.4]} 72. e5 {[%clk 0:00:47.5]} 72... Rd1+ {[%clk 0:01:07.4]} 73. Kc6
{[%clk 0:00:48.7]} 73... Rd8 {[%clk 0:01:08.7]} 74. Rd6 {[%clk 0:00:49.5]} 74...
Rc8+ {[%clk 0:01:09.7]} 75. Kd5 {[%clk 0:00:50.8]} 75... Re8 {[%clk 0:01:09.4]}
76. e6 {[%clk 0:00:52]} 76... Rh8 {[%clk 0:01:09.2]} 77. e7 {[%clk 0:00:51.9]}
77... Rh5+ {[%clk 0:01:05.6]} 78. Kc6 {[%clk 0:00:51.4]} 78... Rh7 {[%clk
0:01:06.2]} 79. Rd7+ {[%clk 0:00:49.8]} 1-0